fUST/lending_fUST_20240726
["ID","MTS","AMOUNT","RATE_DAILY","PERIOD"]
[333236089,1721962246161,-1982.8,0.00013698,2]
[333236090,1721962246171,-500.0,0.00013698,2]
[333236091,1721962246180,-178.41443,0.00013698,2]
[333236092,1721962246190,-151.0,0.00013698,2]
[333236093,1721962246199,-500.0,0.00013698,2]
[333236094,1721962246208,-151.0,0.00013698,2]
[333236095,1721962246218,-703.09,0.00013698,2]
[333236096,1721962246228,-151.0,0.00013698,2]
[333236097,1721962246240,-151.0,0.00013698,2]
[333236098,1721962246250,-151.0,0.00013698,2]
[333236099,1721962246261,-500.0,0.00013698,2]
[333236100,1721962246271,-151.0,0.00013698,2]
[333236101,1721962246282,-500.0,0.00013698,2]
[333236102,1721962246292,-500.0,0.00013698,2]
[333236103,1721962246303,-1068.02,0.00013698,2]
[333236104,1721962246314,-500.0,0.00013698,2]
[333236105,1721962246324,-500.0,0.00013698,2]
[333236106,1721962246335,-900.79,0.00013698,2]
[333236107,1721962246345,-151.0,0.00013698,2]
[333236108,1721962246360,-670.7,0.00013698,2]
[333236109,1721962246370,-221.118114,0.00013698,2]
[333236110,1721962246382,-500.0,0.00013698,2]
[333236111,1721962246392,-501.08227391,0.00013698,2]
[333236112,1721962246403,-500.0,0.00013698,2]
[333236113,1721962246413,-500.0,0.00013698,2]
[333236114,1721962246424,-505.31951478,0.00013698,2]
[333236115,1721962246435,-2089.11,0.00013698,2]
[333236116,1721962246447,-503.68964469,0.00013698,2]
[333236117,1721962246460,-500.0,0.00013698,2]
[333236118,1721962246470,-500.0,0.00013698,2]
[333236119,1721962246479,-500.0,0.00013698,2]
[333236120,1721962246490,-514.89,0.00013698,2]
[333236121,1721962246499,-7149.05,0.00013698,2]
[333236122,1721962246509,-766.16,0.00013698,2]
[333236123,1721962246518,-500.0,0.00013698,2]
[333236124,1721962246528,-753.78989,0.00013698,2]
[333236125,1721962246537,-753.78989,0.00013698,2]
[333236126,1721962246546,-753.78989,0.00013698,2]
[333236127,1721962246556,-505.35890247,0.00013698,2]
[333236128,1721962246565,-753.78989,0.00013698,2]
[333236129,1721962246574,-753.78989,0.00013698,2]
[333236130,1721962246586,-753.78989,0.00013698,2]
[333236131,1721962246595,-753.78989,0.00013698,2]
[333236132,1721962246606,-753.78989,0.00013698,2]
[333236133,1721962246615,-753.78989,0.00013698,2]
[333236134,1721962246625,-753.78989,0.00013698,2]
[333236135,1721962246634,-753.78989,0.00013698,2]
[333236136,1721962246643,-753.78989,0.00013698,2]
[333236137,1721962246654,-753.78989,0.00013698,2]
[333236138,1721962246667,-502.86,0.00013698,2]
[333236139,1721962246677,-753.78989,0.00013698,2]
[333236140,1721962246687,-753.78989,0.00013698,2]
[333236141,1721962246696,-753.78989,0.00013698,2]
[333236142,1721962246706,-753.78989,0.00013698,2]
[333236143,1721962246715,-557.75,0.00013698,2]
[333236144,1721962246725,-753.78989,0.00013698,2]
[333236145,1721962246735,-753.78989,0.00013698,2]
[333236146,1721962246745,-1064.62,0.00013698,2]
[333236147,1721962246754,-753.789883,0.00013698,2]
[333236148,1721962246763,-500.0,0.00013698,2]
[333236149,1721962246773,-500.0,0.00013698,2]
[333236150,1721962246782,-503.83473535,0.00013698,2]
[333236151,1721962246793,-151.0,0.00013698,2]
[333236152,1721962246802,-500.0,0.00013698,2]
[333236153,1721962246812,-3837.36,0.00013698,2]
[333236154,1721962246821,-504.14963923,0.00013698,2]
[333236155,1721962246831,-500.0,0.00013698,2]
[333236156,1721962246841,-1094.21,0.00013698,2]
[333236157,1721962246850,-669.49,0.00013698,2]
[333236158,1721962246861,-2982.62,0.00013698,2]
[333236159,1721962246870,-1033.96,0.00013698,2]
[333236160,1721962246880,-1228.28,0.00013698,2]
[333236161,1721962246890,-500.0,0.00013698,2]
[333236162,1721962246899,-500.0,0.00013698,2]
[333236163,1721962246908,-500.0,0.00013698,2]
[333236164,1721962246918,-161.65722572,0.00013698,2]
[333236165,1721962246962,-552.5026893,0.00013698,2]
[333236166,1721962246971,-525.70567713,0.00013698,2]
[333236167,1721962246980,-552.5026893,0.00013698,2]
[333236168,1721962246990,-552.5026893,0.00013698,2]
[333236169,1721962246999,-552.5026893,0.00013698,2]
[333236170,1721962247009,-552.5026893,0.00013698,2]
[333236171,1721962247018,-500.0,0.00013698,2]
[333236172,1721962247027,-184.80927451,0.00013698,2]
[333236173,1721962247036,-552.5026893,0.00013698,2]
[333236174,1721962247048,-552.5026893,0.00013698,2]
[333236175,1721962247059,-552.5026893,0.00013698,2]
[333236177,1721962247069,-500.0,0.00013698,2]
[333236179,1721962247080,-500.0,0.00013698,2]
[333236181,1721962247089,-517.55401917,0.00013698,2]
[333236183,1721962247099,-1428.43,0.00013698,2]
[333236185,1721962247109,-1048.38,0.00013698,2]
[333236187,1721962247118,-505.29189938,0.00013698,2]
[333236189,1721962247128,-500.0,0.00013698,2]
[333236191,1721962247138,-500.0,0.00013698,2]
[333236193,1721962247147,-500.0,0.00013698,2]
[333236195,1721962247157,-151.0,0.00013699,2]
[333236197,1721962247166,-152.466772,0.00013699,2]
[333236200,1721962247176,-3000.0,0.00013699,2]
[333236202,1721962247185,-204.164077,0.00013699,2]
[333236204,1721962247195,-307.4433292,0.000137,2]
[333236206,1721962247205,-150.112233,0.000137,2]
[333236208,1721962247215,-3146.39353007,0.00013759,2]
[333236210,1721962247224,-153.0,0.00013759,2]
[333236212,1721962247234,-334.33026753,0.000138,2]
[333236214,1721962247243,-454.3601597,0.00013832,2]
[333236216,1721962247253,-151.0,0.0001388,2]
[333236218,1721962247263,-176.16662,0.00013899,2]
[333236220,1721962247272,-176.16662,0.00013899,2]
[333236222,1721962247282,-500.0,0.00013899,2]
[333236224,1721962247291,-9231.31,0.00013899,2]
[333236226,1721962247300,-153.0,0.000139,2]
[333236228,1721962247309,-150.46,0.00013924,2]
[333236230,1721962247319,-505.0,0.00013924,2]
[333236232,1721962247328,-1409.0,0.00013924,2]
[333236234,1721962247338,-500.0,0.0001396,2]
[333236236,1721962247348,-9231.31,0.0001396,2]
[333236237,1721962247359,-176.16662,0.00013961,2]
[333236239,1721962247369,-176.16662,0.00013961,2]
[333236241,1721962247379,-500.0,0.00013961,2]
[333236243,1721962247388,-500.0,0.00013961,2]
[333236245,1721962247398,-500.0,0.00013961,2]
[333236247,1721962247407,-500.0,0.00013961,2]
[333236250,1721962247417,-500.0,0.00013961,2]
[333236251,1721962247426,-257.43089119,0.00013961,2]
[333236253,1721962247436,-9231.31,0.00013961,2]
[333236255,1721962247445,-9231.31,0.00013961,2]
[333236257,1721962247455,-9231.31,0.00013961,2]
[333236259,1721962247464,-9231.31,0.00013961,2]
[333236261,1721962247474,-9231.31,0.00013961,2]
[333236263,1721962247483,-9231.31,0.00013961,2]
[333236265,1721962247492,-9231.31,0.00013961,2]
[333236267,1721962247503,-151.0,0.00013962,2]
[333236269,1721962247512,-176.16662,0.00013969,2]
[333236271,1721962247521,-176.166613,0.00013969,2]
[333236273,1721962247530,-9231.31,0.00013969,2]
[333236275,1721962247540,-9231.31,0.00013969,2]
[333236277,1721962247550,-9231.31,0.00013969,2]
[333236279,1721962247559,-9231.31,0.00013969,2]
[333236281,1721962247569,-9231.37823409,0.00013969,2]
[333236283,1721962247578,-506.65289107,0.00013972,2]
[333236285,1721962247592,-500.0,0.00013972,2]
[333236287,1721962247602,-532.46,0.00013972,2]
[333236289,1721962247614,-500.0,0.00013972,2]
[333236291,1721962247626,-500.0,0.00013972,2]
[333236293,1721962247637,-705.45,0.00013972,2]
[333236295,1721962247648,-500.0,0.00013972,2]
[333236297,1721962247657,-500.0,0.00013972,2]
[333236299,1721962247668,-557.28,0.00013972,2]
[333236301,1721962247677,-500.0,0.00013972,2]
[333236303,1721962247688,-500.0,0.00013972,2]
[333236305,1721962247698,-516.25,0.00013972,2]
[333236307,1721962247708,-503.5182303,0.00013972,2]
[333236309,1721962247718,-500.0,0.00013972,2]
[333236311,1721962247728,-500.0,0.00013972,2]
[333236313,1721962247737,-505.97444456,0.00013972,2]
[333236315,1721962247747,-614.62884491,0.00013972,2]
[333236317,1721962247757,-500.0,0.00013972,2]
[333236319,1721962247767,-500.0,0.00013972,2]
[333236321,1721962247777,-500.0,0.00013972,2]
[333236323,1721962247789,-786.7,0.00013972,2]
[333236325,1721962247799,-500.0,0.00013972,2]
[333236327,1721962247809,-500.0,0.00013972,2]
[333236329,1721962247819,-628.44173615,0.00013972,2]
[333236331,1721962247828,-500.0,0.00013972,2]
[333236333,1721962247839,-500.0,0.00013972,2]
[333236336,1721962247849,-500.0,0.00013972,2]
[333236338,1721962247862,-500.0,0.00013972,2]
[333236340,1721962247872,-500.0,0.00013972,2]
[333236342,1721962247881,-1299.76,0.00013972,2]
[333236344,1721962247890,-500.0,0.00013972,2]
[333236346,1721962247901,-809.2,0.00013972,2]
[333236348,1721962247911,-645.14,0.00013972,2]
[333236350,1721962247921,-500.0,0.00013972,2]
[333236352,1721962247931,-689.27,0.00013972,2]
[333236354,1721962247941,-500.0,0.00013972,2]
[333236356,1721962247954,-500.0,0.00013972,2]
[333236358,1721962247965,-500.0,0.00013972,2]
[333236361,1721962247978,-506.10775999,0.00013972,2]
[333236363,1721962247988,-504.83755215,0.00013972,2]
[333236365,1721962247997,-500.0,0.00013972,2]
[333236367,1721962248007,-500.0,0.00013972,2]
[333236369,1721962248018,-500.0,0.00013972,2]
[333236371,1721962248028,-500.0,0.00013972,2]
[333236373,1721962248038,-500.0,0.00013972,2]
[333236374,1721962248047,-900.08,0.00013972,2]
[333236376,1721962248056,-500.0,0.00013972,2]
[333236378,1721962248065,-582.96,0.00013972,2]
[333236380,1721962248074,-577.92158889,0.00013972,2]
[333236382,1721962248084,-500.0,0.00013972,2]
[333236384,1721962248094,-500.0,0.00013972,2]
[333236386,1721962248108,-1006.82,0.00013972,2]
[333236388,1721962248117,-500.0,0.00013972,2]
[333236390,1721962248126,-817.95,0.00013972,2]
[333236392,1721962248136,-591.97,0.00013972,2]
[333236394,1721962248145,-500.0,0.00013972,2]
[333236396,1721962248156,-651.82,0.00013972,2]
[333236399,1721962248166,-500.0,0.00013972,2]
[333236400,1721962248176,-500.0,0.00013972,2]
[333236402,1721962248187,-500.0,0.00013972,2]
[333236404,1721962248196,-500.0,0.00013972,2]
[333236406,1721962248206,-500.0,0.00013972,2]
[333236408,1721962248215,-598.47,0.00013972,2]
[333236410,1721962248225,-1032.28,0.00013972,2]
[333236412,1721962248236,-500.0,0.00013972,2]
[333236414,1721962248245,-500.0,0.00013972,2]
[333236416,1721962248257,-500.0,0.00013972,2]
[333236418,1721962248267,-831.29,0.00013972,2]
[333236421,1721962248277,-500.0,0.00013972,2]
[333236422,1721962248288,-276.02346293,0.00013972,2]
[333236424,1721962248297,-541.39,0.00013972,2]
[333236427,1721962248309,-235.69782262,0.00013972,2]
[333236429,1721962248319,-500.0,0.00013972,2]
[333236431,1721962248330,-500.0,0.00013972,2]
[333236433,1721962248341,-864.46,0.00013972,2]
[333236435,1721962248351,-500.0,0.00013972,2]
[333236437,1721962248365,-505.30150781,0.00013972,2]
[333236439,1721962248375,-500.0,0.00013972,2]
[333236441,1721962248384,-924.67,0.00013972,2]
[333236443,1721962248394,-500.0,0.00013972,2]
[333236445,1721962248403,-500.0,0.00013972,2]
[333236447,1721962248413,-153.90866964,0.00013972,2]
[333236449,1721962248424,-818.23,0.00013972,2]
[333236451,1721962248436,-500.0,0.00013972,2]
[333236453,1721962248446,-909.41,0.00013972,2]
[333236455,1721962248456,-1307.32,0.00013972,2]
[333236457,1721962248466,-500.0,0.00013972,2]
[333236459,1721962248475,-500.0,0.00013972,2]
[333236461,1721962248487,-530.81818819,0.00013972,2]
[333236463,1721962248498,-505.69417326,0.00013972,2]
[333236465,1721962248508,-500.0,0.00013972,2]
[333236468,1721962248520,-518.39,0.00013972,2]
[333236470,1721962248530,-629.31,0.00013972,2]
[333236472,1721962248541,-500.0,0.00013972,2]
[333236474,1721962248552,-500.0,0.00013972,2]
[333236476,1721962248562,-500.0,0.00013972,2]
[333236478,1721962248573,-500.0,0.00013972,2]
[333236480,1721962248584,-503.01781388,0.00013972,2]
[333236482,1721962248597,-500.0,0.00013972,2]
[333236484,1721962248609,-500.0,0.00013972,2]
[333236486,1721962248620,-500.0,0.00013972,2]
[333236487,1721962248632,-859.52,0.00013972,2]
[333236488,1721962248642,-501.82113159,0.00013972,2]
[333236489,1721962248651,-232.56848709,0.00013972,2]
[333236491,1721962248663,-850.62,0.00013972,2]
[333236493,1721962248673,-500.0,0.00013972,2]
[333236495,1721962248684,-501.56519349,0.00013972,2]
[333236497,1721962248695,-500.0,0.00013972,2]
[333236499,1721962248705,-500.0,0.00013972,2]
[333236501,1721962248717,-500.0,0.00013972,2]
[333236503,1721962248727,-500.0,0.00013972,2]
[333236505,1721962248738,-500.0,0.00013972,2]
[333236507,1721962248747,-500.0,0.00013972,2]
[333236509,1721962248757,-500.0,0.00013972,2]
[333236511,1721962248768,-1182.5,0.00013972,2]
[333236513,1721962248778,-768.15,0.00013972,2]
[333236514,1721962248788,-500.0,0.00013972,2]
[333236516,1721962248800,-574.12,0.00013972,2]
[333236518,1721962248810,-971.41,0.00013972,2]
[333236520,1721962248820,-500.0,0.00013972,2]
[333236522,1721962248831,-1492.26,0.00013972,2]
[333236524,1721962248842,-500.0,0.00013972,2]
[333236526,1721962248852,-610.06,0.00013972,2]
[333236528,1721962248864,-709.42,0.00013972,2]
[333236530,1721962248873,-500.0,0.00013972,2]
[333236532,1721962248884,-500.0,0.00013972,2]
[333236534,1721962248895,-522.08,0.00013972,2]
[333236536,1721962248905,-501.6976513,0.00013972,2]
[333236538,1721962248917,-1085.17,0.00013972,2]
[333236540,1721962248927,-500.0,0.00013972,2]
[333236542,1721962248938,-500.0,0.00013972,2]
[333236544,1721962248948,-777.63,0.00013972,2]
[333236546,1721962248958,-1012.05,0.00013972,2]
[333236547,1721962248967,-713.33,0.00013972,2]
[333236549,1721962248977,-660.93,0.00013972,2]
[333236551,1721962248988,-500.0,0.00013972,2]
[333236553,1721962248999,-6127.98,0.00013972,2]
[333236555,1721962249009,-502.70582821,0.00013972,2]
[333236557,1721962249020,-1088.97,0.00013972,2]
[333236559,1721962249031,-500.0,0.00013972,2]
[333236561,1721962249042,-699.81,0.00013972,2]
[333236563,1721962249054,-608.69,0.00013972,2]
[333236565,1721962249064,-500.0,0.00013972,2]
[333236566,1721962249074,-500.0,0.00013972,2]
[333236568,1721962249085,-508.27035596,0.00013972,2]
[333236570,1721962249096,-631.29,0.00013972,2]
[333236572,1721962249109,-2647.96,0.00013972,2]
[333236574,1721962249118,-1005.35,0.00013972,2]
[333236576,1721962249128,-503.61262495,0.00013972,2]
[333236578,1721962249138,-2683.04,0.00013972,2]
[333236580,1721962249148,-816.54,0.00013972,2]
[333236582,1721962249158,-644.1,0.00013972,2]
[333236584,1721962249168,-500.0,0.00013972,2]
[333236585,1721962249178,-500.0,0.00013972,2]
[333236587,1721962249187,-269.10209723,0.00013972,2]
[333236589,1721962249197,-500.0,0.00013972,2]
[333236591,1721962249208,-500.0,0.00013972,2]
[333236593,1721962249219,-579.30607292,0.00013972,2]
[333236595,1721962249229,-500.0,0.00013972,2]
[333236597,1721962249240,-500.0,0.00013972,2]
[333236599,1721962249251,-500.0,0.00013972,2]
[333236601,1721962249261,-1558.46,0.00013972,2]
[333236602,1721962249272,-724.62,0.00013972,2]
[333236603,1721962249282,-1207.58,0.00013972,2]
[333236604,1721962249293,-500.0,0.00013972,2]
[333236605,1721962249304,-503.07118887,0.00013972,2]
[333236606,1721962249315,-1988.65,0.00013972,2]
[333236607,1721962249326,-500.0,0.00013972,2]
[333236608,1721962249336,-503.39368086,0.00013972,2]
[333236609,1721962249346,-500.0,0.00013972,2]
[333236610,1721962249356,-500.0,0.00013972,2]
[333236611,1721962249371,-500.0,0.00013972,2]
[333236612,1721962249383,-630.11,0.00013972,2]
[333236613,1721962249395,-504.62120421,0.00013972,2]
[333236614,1721962249407,-500.0,0.00013972,2]
[333236615,1721962249420,-1235.29,0.00013972,2]
[333236616,1721962249430,-719.11,0.00013972,2]
[333236617,1721962249441,-500.0,0.00013972,2]
[333236618,1721962249450,-500.0,0.00013972,2]
[333236619,1721962249460,-500.0,0.00013972,2]
[333236620,1721962249470,-1285.22,0.00013972,2]
[333236621,1721962249480,-500.0,0.00013972,2]
[333236622,1721962249490,-500.0,0.00013972,2]
[333236623,1721962249499,-557.23,0.00013972,2]
[333236624,1721962249508,-500.0,0.00013972,2]
[333236625,1721962249518,-976.12,0.00013972,2]
[333236626,1721962249529,-1269.4,0.00013972,2]
[333236627,1721962249540,-1208.87,0.00013972,2]
[333236628,1721962249550,-500.0,0.00013972,2]
[333236629,1721962249562,-500.0,0.00013972,2]
[333236630,1721962249574,-500.0,0.00013972,2]
[333236631,1721962249586,-1005.55,0.00013972,2]
[333236632,1721962249598,-5871.91,0.00013972,2]
[333236633,1721962249612,-719.81,0.00013972,2]
[333236634,1721962249624,-1447.41,0.00013972,2]
[333236635,1721962249635,-1982.8,0.00013972,2]
[333236636,1721962249645,-500.0,0.00013972,2]
[333236637,1721962249656,-500.0,0.00013972,2]
[333236638,1721962249666,-703.09,0.00013972,2]
[333236639,1721962249678,-205.20590275,0.00013972,2]
[333236640,1721962249689,-501.70873884,0.00013972,2]
[333236641,1721962249699,-500.0,0.00013972,2]
[333236642,1721962249710,-1068.02,0.00013972,2]
[333236643,1721962249721,-503.75673307,0.00013972,2]
[333236644,1721962249731,-500.0,0.00013972,2]
[333236645,1721962249742,-900.79,0.00013972,2]
[333236646,1721962249753,-670.7,0.00013972,2]
[333236647,1721962249765,-500.0,0.00013972,2]
[333236648,1721962249775,-500.0,0.00013972,2]
[333236649,1721962249786,-500.0,0.00013972,2]
[333236650,1721962249798,-2089.11,0.00013972,2]
[333236651,1721962249809,-500.0,0.00013972,2]
[333236652,1721962249819,-500.0,0.00013972,2]
[333236653,1721962249829,-514.89,0.00013972,2]
[333236654,1721962249840,-500.0,0.00013972,2]
[333236655,1721962249850,-7149.05,0.00013972,2]
[333236656,1721962249863,-766.16,0.00013972,2]
[333236657,1721962249874,-500.0,0.00013972,2]
[333236658,1721962249886,-502.86,0.00013972,2]
[333236659,1721962249896,-557.75,0.00013972,2]
[333236660,1721962249906,-1064.62,0.00013972,2]
[333236661,1721962249915,-500.0,0.00013972,2]
[333236662,1721962249928,-500.0,0.00013972,2]
[333236663,1721962249939,-500.0,0.00013972,2]
[333236664,1721962249951,-3837.36,0.00013972,2]
[333236665,1721962249963,-500.0,0.00013972,2]
[333236666,1721962249972,-1094.21,0.00013972,2]
[333236667,1721962249985,-669.49,0.00013972,2]
[333236668,1721962249995,-2982.62,0.00013972,2]
[333236669,1721962250006,-1033.96,0.00013972,2]
[333236670,1721962250016,-1228.28,0.00013972,2]
[333236671,1721962250027,-500.0,0.00013972,2]
[333236672,1721962250038,-500.0,0.00013972,2]
[333236673,1721962250049,-500.0,0.00013972,2]
[333236674,1721962250060,-1048.38,0.00013972,2]
[333236675,1721962250069,-1428.43,0.00013972,2]
[333236676,1721962250080,-500.0,0.00013972,2]
[333236677,1721962250090,-581.38484147,0.00013972,2]
[333236678,1721962250101,-634.29442627,0.00014005,2]
[333236679,1721962250113,-500.0,0.00014246,2]
[333236680,1721962250123,-532.46,0.00014246,2]
[333236681,1721962250133,-365.25620267,0.00014246,2]
[333236682,1721962250144,-500.0,0.00014246,2]
[333236683,1721962250154,-705.45,0.00014246,2]
[333236684,1721962250164,-500.0,0.00014246,2]
[333236685,1721962250174,-523.86207582,0.00014246,2]
[333236686,1721962250183,-557.28,0.00014246,2]
[333236687,1721962250193,-500.0,0.00014246,2]
[333236688,1721962250204,-500.0,0.00014246,2]
[333236689,1721962250215,-516.25,0.00014246,2]
[333236690,1721962250225,-500.0,0.00014246,2]
[333236691,1721962250236,-500.0,0.00014246,2]
[333236692,1721962250246,-500.0,0.00014246,2]
[333236693,1721962250256,-508.47711334,0.00014246,2]
[333236694,1721962250266,-500.0,0.00014246,2]
[333236695,1721962250276,-786.7,0.00014246,2]
[333236696,1721962250286,-500.0,0.00014246,2]
[333236697,1721962250296,-500.0,0.00014246,2]
[333236698,1721962250306,-500.0,0.00014246,2]
[333236699,1721962250315,-500.0,0.00014246,2]
[333236700,1721962250325,-362.63419573,0.00014246,2]
[333236708,1721962486830,1000.0,0.00025,120]
[333236718,1721963159174,1703.0,0.00025,120]
[333236943,1721963434575,-259.8612028,0.00012763,2]
[333236946,1721963434588,-200.0,0.00013425,2]
[333236948,1721963434600,-656.76831755,0.00013598,2]
[333237322,1721963440081,-2072.69080429,0.00013598,2]
[333237325,1721963440091,-1426.32188973,0.00013598,2]
[333237328,1721963440101,-300.0,0.00013687,2]
[333237331,1721963440110,-471052.645623,0.00013688,2]
[333237335,1721963440120,-151.0,0.00013698,2]
[333237338,1721963440130,-151.0,0.00013698,2]
[333237342,1721963440141,-501.49016283,0.00013698,2]
[333237345,1721963440150,-509.80395528,0.00013698,2]
[333237347,1721963440160,-562.6930076,0.00013698,2]
[333237351,1721963440170,-500.0,0.00013698,2]
[333237354,1721963440179,-500.0,0.00013698,2]
[333237357,1721963440189,-513.92849081,0.00013698,2]
[333237360,1721963440198,-507.39836349,0.00013698,2]
[333237362,1721963440208,-500.0,0.00013698,2]
[333237364,1721963440217,-484.74491256,0.00013698,2]
[333237366,1721963440226,-500.0,0.00013698,2]
[333237369,1721963440235,-506.9181094,0.00013698,2]
[333237372,1721963440246,-500.0,0.00013698,2]
[333237374,1721963440255,-509.44834222,0.00013698,2]
[333237377,1721963440264,-504.354886,0.00013698,2]
[333237380,1721963440273,-500.0,0.00013698,2]
[333237383,1721963440283,-500.0,0.00013698,2]
[333237385,1721963440292,-507.10437537,0.00013698,2]
[333237387,1721963440301,-500.0,0.00013698,2]
[333237389,1721963440312,-513.00394085,0.00013698,2]
[333237391,1721963440321,-516.77693941,0.00013698,2]
[333237393,1721963440331,-500.0,0.00013698,2]
[333237395,1721963440341,-519.81703122,0.00013698,2]
[333237397,1721963440352,-500.0,0.00013698,2]
[333237399,1721963440361,-500.0,0.00013698,2]
[333237401,1721963440374,-507.14909978,0.00013698,2]
[333237404,1721963440384,-502.77452337,0.00013698,2]
[333237406,1721963440394,-505.87563239,0.00013698,2]
[333237408,1721963440406,-506.35269349,0.00013698,2]
[333237410,1721963440417,-500.0,0.00013698,2]
[333237412,1721963440428,-592.86738694,0.00013698,2]
[333237415,1721963440439,-501.2481524,0.00013698,2]
[333237417,1721963440450,-500.0,0.00013698,2]
[333237419,1721963440460,-509.10561057,0.00013698,2]
[333237421,1721963440471,-502.49066998,0.00013698,2]
[333237423,1721963440482,-507.48085616,0.00013698,2]
[333237426,1721963440494,-506.86964681,0.00013698,2]
[333237428,1721963440504,-503.63376949,0.00013698,2]
[333237430,1721963440514,-506.38197011,0.00013698,2]
[333237432,1721963440523,-500.0,0.00013698,2]
[333237434,1721963440533,-506.05120005,0.00013698,2]
[333237436,1721963440544,-534.68855558,0.00013698,2]
[333237438,1721963440556,-507.20969745,0.00013698,2]
[333237440,1721963440569,-503.88218785,0.00013698,2]
[333237442,1721963440580,-500.0,0.00013698,2]
[333237444,1721963440590,-506.98915833,0.00013698,2]
[333237446,1721963440602,-519.42437233,0.00013698,2]
[333237449,1721963440614,-500.0,0.00013698,2]
[333237451,1721963440626,-507.56077782,0.00013698,2]
[333237453,1721963440636,-506.2368156,0.00013698,2]
[333237455,1721963440648,-500.0,0.00013698,2]
[333237457,1721963440658,-500.0,0.00013698,2]
[333237459,1721963440669,-500.0,0.00013698,2]
[333237462,1721963440680,-500.0,0.00013698,2]
[333237464,1721963440690,-500.0,0.00013698,2]
[333237466,1721963440700,-500.0,0.00013698,2]
[333237468,1721963440709,-500.0,0.00013698,2]
[333237470,1721963440719,-909.58,0.00013698,2]
[333237472,1721963440730,-500.0,0.00013698,2]
[333237474,1721963440741,-500.0,0.00013698,2]
[333237476,1721963440752,-500.0,0.00013698,2]
[333237479,1721963440763,-505.25442677,0.00013698,2]
[333237483,1721963440773,-502.72789632,0.00013698,2]
[333237485,1721963440784,-500.0,0.00013698,2]
[333237487,1721963440795,-500.0,0.00013698,2]
[333237490,1721963440808,-500.0,0.00013698,2]
[333237492,1721963440818,-500.0,0.00013698,2]
[333237494,1721963440828,-500.0,0.00013698,2]
[333237496,1721963440839,-500.0,0.00013698,2]
[333237498,1721963440849,-572.5,0.00013698,2]
[333237500,1721963440861,-500.0,0.00013698,2]
[333237502,1721963440873,-500.0,0.00013698,2]
[333237505,1721963440884,-500.0,0.00013698,2]
[333237507,1721963440894,-500.0,0.00013698,2]
[333237509,1721963440904,-500.0,0.00013698,2]
[333237511,1721963440915,-500.0,0.00013698,2]
[333237513,1721963440925,-500.0,0.00013698,2]
[333237515,1721963440935,-151.370208,0.00013698,2]
[333237517,1721963440946,-1159.04,0.00013698,2]
[333237519,1721963440957,-542.43,0.00013698,2]
[333237521,1721963440969,-864.24,0.00013698,2]
[333237524,1721963440981,-502.1295564,0.00013698,2]
[333237526,1721963440992,-500.0,0.00013698,2]
[333237528,1721963441003,-502.24128874,0.00013698,2]
[333237530,1721963441015,-500.0,0.00013698,2]
[333237532,1721963441025,-500.0,0.00013698,2]
[333237535,1721963441037,-500.0,0.00013698,2]
[333237537,1721963441049,-500.0,0.00013698,2]
[333237539,1721963441060,-500.0,0.00013698,2]